[Event "Titled Tuesday Blitz June 27 Early 2023"]
[White "Andreassen, Lars"]
[Black "LeoLV10"]
[WhiteFideId "1504878"]
[WhiteElo "2231"]
[BlackElo "2427"]
[Result "1-0"]
[Round "3"]
[TimeControl "180+2"]
[Date "2023.06.27"]
[WhiteClock "0:00:21"]
[BlackClock "0:00:03"]
[Board "183"]

1. d4 {[%clk 0:02:59]}  Nf6 {[%clk 0:02:59]} 2. Nf3 {[%clk 0:03:00]}  d5 {[%clk 0:02:57]} 3. c4 {[%clk 0:02:57]}  c6 {[%clk 0:02:57]} 4. Nc3 {[%clk 0:02:58]}  g6 {[%clk 0:02:55]} 5. Bf4 {[%clk 0:02:56]}  Bg7 {[%clk 0:02:55]} 6. e3 {[%clk 0:02:51]}  O-O {[%clk 0:02:54]} 7. Be2 {[%clk 0:02:52]}  Nbd7 {[%clk 0:02:41]} 8. cxd5 {[%clk 0:02:49]}  cxd5 {[%clk 0:02:42]} 9. O-O {[%clk 0:02:46]}  a6 {[%clk 0:02:40]} 10. h3 {[%clk 0:02:45]}  b5 {[%clk 0:02:34]} 11. a3 {[%clk 0:02:40]}  Bb7 {[%clk 0:02:34]} 12. Rc1 {[%clk 0:02:27]}  Rc8 {[%clk 0:02:25]} 13. Qb3 {[%clk 0:02:19]}  Nb6 {[%clk 0:02:24]} 14. a4 {[%clk 0:02:13]}  bxa4 {[%clk 0:01:55]} 15. Nxa4 {[%clk 0:02:09]}  Nxa4 {[%clk 0:01:55]} 16. Qxb7 {[%clk 0:02:01]}  Ne4 {[%clk 0:01:43]} 17. Bxa6 {[%clk 0:01:48]}  Ra8 {[%clk 0:00:59]} 18. Bd3 {[%clk 0:01:36]}  Nf6 {[%clk 0:00:47]} 19. Ne5 {[%clk 0:01:26]}  Rb8 {[%clk 0:00:34]} 20. Qa6 {[%clk 0:01:23]}  Nxb2 {[%clk 0:00:35]} 21. Nc6 {[%clk 0:01:14]}  Rb6 {[%clk 0:00:05]} 22. Nxd8 {[%clk 0:01:11]}  Rxa6 {[%clk 0:00:05]} 23. Bxa6 {[%clk 0:01:08]}  Rxd8 {[%clk 0:00:06]} 24. Rc8 {[%clk 0:01:05]}  Rxc8 {[%clk 0:00:05]} 25. Bxc8 {[%clk 0:01:06]}  Nd3 {[%clk 0:00:05]} 26. Bc7 {[%clk 0:00:59]}  Ne4 {[%clk 0:00:06]} 27. Ba6 {[%clk 0:00:53]}  Nb4 {[%clk 0:00:05]} 28. Bb5 {[%clk 0:00:49]}  Na2 {[%clk 0:00:05]} 29. Ba5 {[%clk 0:00:47]}  Nac3 {[%clk 0:00:05]} 30. Bxc3 {[%clk 0:00:46]}  Nxc3 {[%clk 0:00:06]} 31. Bd3 {[%clk 0:00:45]}  e6 {[%clk 0:00:05]} 32. Rc1 {[%clk 0:00:44]}  Ne4 {[%clk 0:00:02]} 33. Bxe4 {[%clk 0:00:44]}  dxe4 {[%clk 0:00:03]} 34. Rc8+ {[%clk 0:00:42]}  Bf8 {[%clk 0:00:04]} 35. g4 {[%clk 0:00:40]}  Kg7 {[%clk 0:00:04]} 36. Kg2 {[%clk 0:00:37]}  Bd6 {[%clk 0:00:05]} 37. Rc6 {[%clk 0:00:36]}  Be7 {[%clk 0:00:05]} 38. Ra6 {[%clk 0:00:33]}  Bh4 {[%clk 0:00:04]} 39. Ra5 {[%clk 0:00:32]}  Kf6 {[%clk 0:00:04]} 40. Re5 {[%clk 0:00:32]}  Bg5 {[%clk 0:00:04]} 41. Rxe4 {[%clk 0:00:31]}  h6 {[%clk 0:00:04]} 42. Re5 {[%clk 0:00:31]}  Bh4 {[%clk 0:00:03]} 43. f4 {[%clk 0:00:31]}  Ke7 {[%clk 0:00:03]} 44. Ra5 {[%clk 0:00:31]}  Bf6 {[%clk 0:00:03]} 45. Kf3 {[%clk 0:00:31]}  Kf8 {[%clk 0:00:04]} 46. Ra7 {[%clk 0:00:31]}  Kg7 {[%clk 0:00:04]} 47. Ke4 {[%clk 0:00:30]}  Bd8 {[%clk 0:00:03]} 48. d5 {[%clk 0:00:30]}  exd5+ {[%clk 0:00:03]} 49. Kxd5 {[%clk 0:00:31]}  Bb6 {[%clk 0:00:04]} 50. Ra3 {[%clk 0:00:29]}  Bd8 {[%clk 0:00:04]} 51. e4 {[%clk 0:00:28]}  Bc7 {[%clk 0:00:03]} 52. Rf3 {[%clk 0:00:27]}  Bb8 {[%clk 0:00:02]} 53. e5 {[%clk 0:00:27]}  Kf8 {[%clk 0:00:02]} 54. f5 {[%clk 0:00:27]}  g5 {[%clk 0:00:02]} 55. e6 {[%clk 0:00:26]}  f6 {[%clk 0:00:01]} 56. Rb3 {[%clk 0:00:25]}  Be5 {[%clk 0:00:02]} 57. Rb7 {[%clk 0:00:24]}  Ke8 {[%clk 0:00:02]} 58. Rh7 {[%clk 0:00:24]}  Bf4 {[%clk 0:00:03]} 59. Rxh6 {[%clk 0:00:24]}  Be5 {[%clk 0:00:04]} 60. h4 {[%clk 0:00:22]}  gxh4 {[%clk 0:00:03]} 61. Rxh4 {[%clk 0:00:22]}  Ba1 {[%clk 0:00:03]} 62. Rh7 {[%clk 0:00:22]}  Bb2 {[%clk 0:00:03]} 63. e7 {[%clk 0:00:21]}  Ba3 {[%clk 0:00:02]} 64. Ke6 {[%clk 0:00:21]}  Bxe7 {[%clk 0:00:02]} 65. Rxe7+ {[%clk 0:00:21]}  Kd8 {[%clk 0:00:03]} 1-0


[Site "https://www.chess.com"]

[Event "Titled Tuesday Blitz June 27 Early 2023"]
[White "Fernandez Hernandez, Gerardo"]
[Black "Alahakoon, Isuru"]
[WhiteFideId "2207400"]
[BlackFideId "9900993"]
[WhiteElo "2201"]
[BlackElo "2358"]
[Result "1-0"]
[Round "3"]
[TimeControl "180+2"]
[Date "2023.06.27"]
[WhiteClock "0:00:07"]
[BlackClock "0:00:00"]
[Board "185"]

1. e4 {[%clk 0:03:00]}  d5 {[%clk 0:02:59]} 2. exd5 {[%clk 0:03:00]}  Qxd5 {[%clk 0:03:00]} 3. Nc3 {[%clk 0:03:00]}  Qa5 {[%clk 0:03:01]} 4. d4 {[%clk 0:03:00]}  Nf6 {[%clk 0:03:01]} 5. Bd2 {[%clk 0:02:59]}  Bg4 {[%clk 0:03:02]} 6. Be2 {[%clk 0:02:54]}  Bxe2 {[%clk 0:03:02]} 7. Ngxe2 {[%clk 0:02:53]}  Nc6 {[%clk 0:03:01]} 8. a4 {[%clk 0:02:42]}  O-O-O {[%clk 0:03:00]} 9. Nb5 {[%clk 0:02:36]}  Qa6 {[%clk 0:02:59]} 10. b4 {[%clk 0:02:21]}  e5 {[%clk 0:02:52]} 11. c3 {[%clk 0:02:21]}  exd4 {[%clk 0:02:51]} 12. Nbxd4 {[%clk 0:02:16]}  Nxd4 {[%clk 0:02:50]} 13. Nxd4 {[%clk 0:02:14]}  Re8+ {[%clk 0:02:48]} 14. Be3 {[%clk 0:02:14]}  Nd5 {[%clk 0:02:42]} 15. Qg4+ {[%clk 0:01:48]}  Kb8 {[%clk 0:02:39]} 16. b5 {[%clk 0:01:46]}  Qd6 {[%clk 0:01:40]} 17. O-O {[%clk 0:01:33]}  h5 {[%clk 0:01:33]} 18. Qf3 {[%clk 0:01:23]}  Nxe3 {[%clk 0:01:21]} 19. fxe3 {[%clk 0:01:18]}  f6 {[%clk 0:01:21]} 20. a5 {[%clk 0:01:04]}  Qe5 {[%clk 0:01:15]} 21. Rfe1 {[%clk 0:00:57]}  Bd6 {[%clk 0:01:14]} 22. a6 {[%clk 0:00:45]}  Qxh2+ {[%clk 0:01:13]} 23. Kf1 {[%clk 0:00:44]}  c6 {[%clk 0:00:44]} 24. axb7 {[%clk 0:00:31]}  Bg3 {[%clk 0:00:17]} 25. Nxc6+ {[%clk 0:00:29]}  Kc7 {[%clk 0:00:18]} 26. Red1 {[%clk 0:00:16]}  Rxe3 {[%clk 0:00:09]} 27. Qxe3 {[%clk 0:00:14]}  Qh1+ {[%clk 0:00:09]} 28. Ke2 {[%clk 0:00:14]}  Qxg2+ {[%clk 0:00:09]} 29. Kd3 {[%clk 0:00:13]}  Qd5+ {[%clk 0:00:06]} 30. Kc2 {[%clk 0:00:11]}  Qf5+ {[%clk 0:00:06]} 31. Qd3 {[%clk 0:00:10]}  Qf2+ {[%clk 0:00:05]} 32. Rd2 {[%clk 0:00:10]}  Qb6 {[%clk 0:00:00]} 33. Rxa7 {[%clk 0:00:07]} 1-0


[Site "https://www.chess.com"]

[Event "Titled Tuesday Blitz June 27 Early 2023"]
[White "Fajdetic, Hrvoje"]
[Black "Kowalysko, Roman"]
[WhiteFideId "14501945"]
[BlackFideId "30918510"]
[WhiteElo "2356"]
[BlackElo "2033"]
[Result "1-0"]
[Round "3"]
[TimeControl "180+2"]
[Date "2023.06.27"]
[WhiteClock "0:00:07"]
[BlackClock "0:00:45"]
[Board "186"]

1. f4 {[%clk 0:02:57]}  e5 {[%clk 0:02:55]} 2. fxe5 {[%clk 0:02:57]}  d6 {[%clk 0:02:55]} 3. exd6 {[%clk 0:02:56]}  Bxd6 {[%clk 0:02:56]} 4. Nf3 {[%clk 0:02:55]}  g5 {[%clk 0:02:56]} 5. g3 {[%clk 0:02:54]}  g4 {[%clk 0:02:54]} 6. Nh4 {[%clk 0:02:54]}  Ne7 {[%clk 0:02:53]} 7. Nc3 {[%clk 0:02:43]}  Ng6 {[%clk 0:02:50]} 8. Ng2 {[%clk 0:02:41]}  h5 {[%clk 0:02:44]} 9. Ne4 {[%clk 0:02:40]}  h4 {[%clk 0:02:34]} 10. Nxd6+ {[%clk 0:02:21]}  Qxd6 {[%clk 0:02:34]} 11. gxh4 {[%clk 0:02:13]}  Nxh4 {[%clk 0:02:35]} 12. d4 {[%clk 0:01:44]}  Nxg2+ {[%clk 0:02:33]} 13. Bxg2 {[%clk 0:01:45]}  Rxh2 {[%clk 0:02:32]} 14. O-O {[%clk 0:01:25]}  Rh8 {[%clk 0:02:06]} 15. Bf4 {[%clk 0:01:20]}  Qe7 {[%clk 0:01:51]} 16. Qd3 {[%clk 0:01:04]}  Nc6 {[%clk 0:01:33]} 17. d5 {[%clk 0:00:31]}  Ne5 {[%clk 0:01:32]} 18. Qe4 {[%clk 0:00:23]}  f6 {[%clk 0:01:17]} 19. Bxe5 {[%clk 0:00:23]}  Qxe5 {[%clk 0:01:14]} 20. Qg6+ {[%clk 0:00:16]}  Kf8 {[%clk 0:01:11]} 21. Rxf6+ {[%clk 0:00:14]}  Qxf6 {[%clk 0:01:04]} 22. Qxf6+ {[%clk 0:00:13]}  Kg8 {[%clk 0:01:05]} 23. d6 {[%clk 0:00:12]}  c6 {[%clk 0:01:03]} 24. Qd8+ {[%clk 0:00:12]}  Kg7 {[%clk 0:01:03]} 25. Qc7+ {[%clk 0:00:12]}  Kf6 {[%clk 0:01:01]} 26. d7 {[%clk 0:00:12]}  Bxd7 {[%clk 0:01:01]} 27. Qxd7 {[%clk 0:00:13]}  Rad8 {[%clk 0:01:01]} 28. Qxg4 {[%clk 0:00:12]}  Rhg8 {[%clk 0:01:01]} 29. Rf1+ {[%clk 0:00:11]}  Ke7 {[%clk 0:01:01]} 30. Qh4+ {[%clk 0:00:11]}  Kd6 {[%clk 0:01:01]} 31. Rf6+ {[%clk 0:00:10]}  Kc7 {[%clk 0:01:01]} 32. Qf4+ {[%clk 0:00:10]}  Kb6 {[%clk 0:00:55]} 33. Kh2 {[%clk 0:00:10]}  Rh8+ {[%clk 0:00:55]} 34. Rh6 {[%clk 0:00:10]}  Rdf8 {[%clk 0:00:51]} 35. Qh4 {[%clk 0:00:09]}  Rhg8 {[%clk 0:00:49]} 36. Qd4+ {[%clk 0:00:09]}  Ka6 {[%clk 0:00:46]} 37. e4 {[%clk 0:00:08]}  b6 {[%clk 0:00:44]} 38. e5 {[%clk 0:00:05]}  Rd8 {[%clk 0:00:45]} 39. Qa4+ {[%clk 0:00:05]}  Kb7 {[%clk 0:00:45]} 40. Qxc6+ {[%clk 0:00:06]}  Ka6 {[%clk 0:00:45]} 41. Bf1+ {[%clk 0:00:06]}  Ka5 {[%clk 0:00:45]} 42. Qb5# {[%clk 0:00:07]} 1-0


[Site "https://www.chess.com"]

[Event "Titled Tuesday Blitz June 27 Early 2023"]
[White "Rahman, Masruri"]
[Black "Vianello, Enrico"]
[WhiteFideId "7101163"]
[BlackFideId "810738"]
[WhiteElo "2790"]
[BlackElo "2164"]
[Result "1-0"]
[Round "3"]
[TimeControl "180+2"]
[Date "2023.06.27"]
[WhiteClock "0:01:58"]
[BlackClock "0:00:46"]
[Board "187"]

1. d4 {[%clk 0:03:00]}  d5 {[%clk 0:02:58]} 2. Bf4 {[%clk 0:03:01]}  Nf6 {[%clk 0:02:55]} 3. e3 {[%clk 0:03:01]}  c5 {[%clk 0:02:53]} 4. Nc3 {[%clk 0:03:01]}  Nc6 {[%clk 0:02:51]} 5. Nb5 {[%clk 0:03:01]}  e5 {[%clk 0:02:46]} 6. dxe5 {[%clk 0:03:01]}  Ne4 {[%clk 0:02:42]} 7. Qxd5 {[%clk 0:03:01]}  Qxd5 {[%clk 0:02:34]} 8. Nc7+ {[%clk 0:02:59]}  Kd7 {[%clk 0:02:31]} 9. Nxd5 {[%clk 0:03:00]}  g5 {[%clk 0:02:23]} 10. Bg3 {[%clk 0:02:47]}  Nxg3 {[%clk 0:02:21]} 11. hxg3 {[%clk 0:02:47]}  Nxe5 {[%clk 0:02:21]} 12. O-O-O {[%clk 0:02:46]}  Bd6 {[%clk 0:02:16]} 13. Bb5+ {[%clk 0:02:42]}  Ke6 {[%clk 0:02:08]} 14. Rh6+ {[%clk 0:02:40]}  Ng6 {[%clk 0:02:04]} 15. Nf3 {[%clk 0:02:25]}  g4 {[%clk 0:01:55]} 16. Ng5+ {[%clk 0:02:20]}  Kf5 {[%clk 0:01:46]} 17. Nxf7 {[%clk 0:02:20]}  Bf8 {[%clk 0:01:26]} 18. Rh5+ {[%clk 0:02:16]}  Ke6 {[%clk 0:00:46]} 19. Nd8+ {[%clk 0:01:58]} 1-0


[Site "https://www.chess.com"]

[Event "Titled Tuesday Blitz June 27 Early 2023"]
[White "Vifleemskaia, Svetlana"]
[Black "Mariano, Nelson III"]
[WhiteFideId "4129490"]
[BlackFideId "5201748"]
[WhiteElo "2310"]
[BlackElo "2582"]
[Result "1-0"]
[Round "3"]
[TimeControl "180+2"]
[Date "2023.06.27"]
[WhiteClock "0:01:40"]
[BlackClock "0:01:30"]
[Board "190"]

1. d4 {[%clk 0:03:00]}  Nf6 {[%clk 0:02:59]} 2. c4 {[%clk 0:03:00]}  g6 {[%clk 0:02:53]} 3. Nc3 {[%clk 0:03:00]}  Bg7 {[%clk 0:02:53]} 4. e4 {[%clk 0:03:01]}  O-O {[%clk 0:02:49]} 5. Nge2 {[%clk 0:03:01]}  d6 {[%clk 0:02:49]} 6. Ng3 {[%clk 0:03:02]}  c5 {[%clk 0:02:48]} 7. d5 {[%clk 0:03:01]}  b5 {[%clk 0:02:46]} 8. cxb5 {[%clk 0:03:00]}  a6 {[%clk 0:02:46]} 9. bxa6 {[%clk 0:02:58]}  Bxa6 {[%clk 0:02:42]} 10. Bxa6 {[%clk 0:02:57]}  Nxa6 {[%clk 0:02:40]} 11. O-O {[%clk 0:02:57]}  Qa5 {[%clk 0:02:40]} 12. a4 {[%clk 0:02:53]}  Rfb8 {[%clk 0:02:38]} 13. Ra3 {[%clk 0:02:50]}  Nd7 {[%clk 0:02:38]} 14. Nb5 {[%clk 0:02:47]}  Nc7 {[%clk 0:02:35]} 15. Qe2 {[%clk 0:02:31]}  Qb4 {[%clk 0:02:23]} 16. Nxc7 {[%clk 0:02:19]}  Rxa4 {[%clk 0:02:23]} 17. Na6 {[%clk 0:02:08]}  Rxa6 {[%clk 0:02:14]} 18. Rxa6 {[%clk 0:01:56]}  c4 {[%clk 0:02:14]} 19. Rc6 {[%clk 0:01:53]}  Nc5 {[%clk 0:02:12]} 20. Bg5 {[%clk 0:01:47]}  Bxb2 {[%clk 0:02:07]} 21. Bxe7 {[%clk 0:01:42]}  Na4 {[%clk 0:01:30]} 22. Bxd6 {[%clk 0:01:40]} 1-0


[Site "https://www.chess.com"]

[Event "Titled Tuesday Blitz June 27 Early 2023"]
[White "Wang, Alexander J"]
[Black "Sebag, Marie"]
[WhiteFideId "30955270"]
[BlackFideId "617822"]
[WhiteElo "2306"]
[BlackElo "2549"]
[Result "0-1"]
[Round "3"]
[TimeControl "180+2"]
[Date "2023.06.27"]
[WhiteClock "0:00:12"]
[BlackClock "0:00:08"]
[Board "191"]

1. e4 {[%clk 0:03:00]}  c6 {[%clk 0:02:18]} 2. d4 {[%clk 0:02:53]}  d5 {[%clk 0:02:16]} 3. f3 {[%clk 0:02:49]}  dxe4 {[%clk 0:02:14]} 4. fxe4 {[%clk 0:02:50]}  e5 {[%clk 0:02:14]} 5. Nf3 {[%clk 0:02:36]}  Nd7 {[%clk 0:02:12]} 6. Bc4 {[%clk 0:02:30]}  exd4 {[%clk 0:01:53]} 7. O-O {[%clk 0:02:23]}  Ngf6 {[%clk 0:01:52]} 8. e5 {[%clk 0:01:43]}  Nd5 {[%clk 0:01:49]} 9. Nxd4 {[%clk 0:01:40]}  Nxe5 {[%clk 0:01:47]} 10. Re1 {[%clk 0:01:32]}  Bd6 {[%clk 0:01:43]} 11. Nf3 {[%clk 0:01:21]}  f6 {[%clk 0:01:36]} 12. Bxd5 {[%clk 0:01:14]}  cxd5 {[%clk 0:01:36]} 13. Qxd5 {[%clk 0:01:12]}  Qe7 {[%clk 0:01:22]} 14. Nxe5 {[%clk 0:01:06]}  Bxe5 {[%clk 0:01:16]} 15. Bf4 {[%clk 0:00:57]}  Be6 {[%clk 0:01:10]} 16. Qb5+ {[%clk 0:00:32]}  Bd7 {[%clk 0:01:09]} 17. Qd5 {[%clk 0:00:21]}  Bc6 {[%clk 0:01:04]} 18. Bxe5 {[%clk 0:00:16]}  Bxd5 {[%clk 0:00:31]} 19. Bg3 {[%clk 0:00:13]}  Be6 {[%clk 0:00:28]} 20. Nc3 {[%clk 0:00:13]}  Kf7 {[%clk 0:00:27]} 21. Ne4 {[%clk 0:00:10]}  Rhd8 {[%clk 0:00:27]} 22. Rf1 {[%clk 0:00:08]}  Kg8 {[%clk 0:00:26]} 23. Rae1 {[%clk 0:00:08]}  Rac8 {[%clk 0:00:25]} 24. Rf2 {[%clk 0:00:06]}  Qd7 {[%clk 0:00:18]} 25. Rxf6 {[%clk 0:00:04]}  gxf6 {[%clk 0:00:17]} 26. Nxf6+ {[%clk 0:00:04]}  Kf7 {[%clk 0:00:18]} 27. Nxd7 {[%clk 0:00:05]}  Rxd7 {[%clk 0:00:18]} 28. c3 {[%clk 0:00:05]}  Rd2 {[%clk 0:00:18]} 29. b4 {[%clk 0:00:04]}  Rcd8 {[%clk 0:00:17]} 30. Be5 {[%clk 0:00:05]}  Rd1 {[%clk 0:00:17]} 31. Rxd1 {[%clk 0:00:05]}  Rxd1+ {[%clk 0:00:17]} 32. Kf2 {[%clk 0:00:06]}  Rd2+ {[%clk 0:00:18]} 33. Kf3 {[%clk 0:00:07]}  Rxa2 {[%clk 0:00:18]} 34. Bd4 {[%clk 0:00:07]}  Bd5+ {[%clk 0:00:18]} 35. Kf4 {[%clk 0:00:07]}  Rxg2 {[%clk 0:00:17]} 36. Bxa7 {[%clk 0:00:08]}  Rxh2 {[%clk 0:00:17]} 37. Bd4 {[%clk 0:00:08]}  Rc2 {[%clk 0:00:16]} 38. Ke5 {[%clk 0:00:08]}  Bc4 {[%clk 0:00:15]} 39. Kd6 {[%clk 0:00:08]}  h5 {[%clk 0:00:14]} 40. Kc7 {[%clk 0:00:09]}  b5 {[%clk 0:00:14]} 41. Kd6 {[%clk 0:00:07]}  h4 {[%clk 0:00:13]} 42. Be5 {[%clk 0:00:07]}  h3 {[%clk 0:00:12]} 43. Kc5 {[%clk 0:00:08]}  h2 {[%clk 0:00:12]} 44. Bxh2 {[%clk 0:00:08]}  Rxh2 {[%clk 0:00:10]} 45. Kd4 {[%clk 0:00:09]}  Rd2+ {[%clk 0:00:10]} 46. Kc5 {[%clk 0:00:10]}  Ke6 {[%clk 0:00:09]} 47. Kb6 {[%clk 0:00:11]}  Rd6+ {[%clk 0:00:09]} 48. Kc5 {[%clk 0:00:12]}  Rd8 {[%clk 0:00:08]} 49. Kc6 {[%clk 0:00:12]}  Rc8+ {[%clk 0:00:09]} 50. Kb7 {[%clk 0:00:12]}  Kd7 {[%clk 0:00:09]} 51. Kb6 {[%clk 0:00:13]}  Kd6 {[%clk 0:00:08]} 52. Kb7 {[%clk 0:00:13]}  Be6 {[%clk 0:00:08]} 53. Kb6 {[%clk 0:00:13]}  Rb8+ {[%clk 0:00:08]} 54. Ka5 {[%clk 0:00:12]}  Kc6 {[%clk 0:00:08]} 55. Ka6 {[%clk 0:00:12]}  Ra8# {[%clk 0:00:08]} 0-1


[Site "https://www.chess.com"]

[Event "Titled Tuesday Blitz June 27 Early 2023"]
[White "Serban, Cristian-Stefan"]
[Black "Bueno, Alfeu Junior Varela"]
[WhiteFideId "1241443"]
[BlackFideId "2108879"]
[WhiteElo "2544"]
[BlackElo "2305"]
[Result "1/2-1/2"]
[Round "3"]
[TimeControl "180+2"]
[Date "2023.06.27"]
[WhiteClock "0:00:04"]
[BlackClock "0:00:04"]
[Board "192"]

1. Nf3 {[%clk 0:03:00]}  e6 {[%clk 0:02:59]} 2. b3 {[%clk 0:03:00]}  f5 {[%clk 0:03:00]} 3. Bb2 {[%clk 0:03:01]}  b6 {[%clk 0:03:00]} 4. e3 {[%clk 0:03:01]}  Bb7 {[%clk 0:03:01]} 5. d4 {[%clk 0:03:02]}  Nf6 {[%clk 0:03:00]} 6. Be2 {[%clk 0:03:02]}  Be7 {[%clk 0:03:01]} 7. Nbd2 {[%clk 0:03:02]}  O-O {[%clk 0:03:01]} 8. O-O {[%clk 0:03:02]}  Qe8 {[%clk 0:03:01]} 9. c4 {[%clk 0:03:00]}  Qg6 {[%clk 0:03:01]} 10. Ne1 {[%clk 0:02:53]}  d6 {[%clk 0:03:00]} 11. Bf3 {[%clk 0:02:52]}  Ne4 {[%clk 0:03:00]} 12. Qc2 {[%clk 0:02:50]}  Nd7 {[%clk 0:02:55]} 13. Nxe4 {[%clk 0:02:39]}  fxe4 {[%clk 0:02:54]} 14. Be2 {[%clk 0:02:39]}  Rf5 {[%clk 0:02:45]} 15. Rc1 {[%clk 0:02:07]}  Raf8 {[%clk 0:02:44]} 16. f3 {[%clk 0:01:52]}  exf3 {[%clk 0:02:18]} 17. Bxf3 {[%clk 0:01:53]}  Bg5 {[%clk 0:02:03]} 18. Qe2 {[%clk 0:01:36]}  Qh6 {[%clk 0:01:55]} 19. Rc3 {[%clk 0:01:32]}  e5 {[%clk 0:01:36]} 20. e4 {[%clk 0:00:57]}  Rf4 {[%clk 0:01:36]} 21. d5 {[%clk 0:00:57]}  Nc5 {[%clk 0:01:25]} 22. Nd3 {[%clk 0:00:52]}  R4f6 {[%clk 0:00:49]} 23. Nxc5 {[%clk 0:00:50]}  bxc5 {[%clk 0:00:48]} 24. Bc1 {[%clk 0:00:50]}  Bc8 {[%clk 0:00:45]} 25. Bxg5 {[%clk 0:00:47]}  Qxg5 {[%clk 0:00:46]} 26. Qe3 {[%clk 0:00:47]}  Qg6 {[%clk 0:00:36]} 27. Rcc1 {[%clk 0:00:39]}  h5 {[%clk 0:00:35]} 28. Be2 {[%clk 0:00:36]}  h4 {[%clk 0:00:31]} 29. Rxf6 {[%clk 0:00:32]}  Rxf6 {[%clk 0:00:32]} 30. Rf1 {[%clk 0:00:33]}  h3 {[%clk 0:00:32]} 31. g3 {[%clk 0:00:31]}  Rxf1+ {[%clk 0:00:28]} 32. Bxf1 {[%clk 0:00:32]}  Qh5 {[%clk 0:00:26]} 33. Be2 {[%clk 0:00:31]}  Bg4 {[%clk 0:00:26]} 34. Bf1 {[%clk 0:00:30]}  Bf3 {[%clk 0:00:23]} 35. Kf2 {[%clk 0:00:26]}  Bg4 {[%clk 0:00:19]} 36. Kg1 {[%clk 0:00:26]}  Qf7 {[%clk 0:00:19]} 37. Qf2 {[%clk 0:00:20]}  Qg6 {[%clk 0:00:16]} 38. Qe3 {[%clk 0:00:18]}  Qh5 {[%clk 0:00:16]} 39. a3 {[%clk 0:00:16]}  a5 {[%clk 0:00:15]} 40. Qd2 {[%clk 0:00:15]}  Bd1 {[%clk 0:00:13]} 41. Qe3 {[%clk 0:00:08]}  g5 {[%clk 0:00:11]} 42. Kf2 {[%clk 0:00:07]}  g4 {[%clk 0:00:09]} 43. Be2 {[%clk 0:00:05]}  Bxe2 {[%clk 0:00:08]} 44. Kxe2 {[%clk 0:00:06]}  Qf7 {[%clk 0:00:07]} 45. Qf2 {[%clk 0:00:06]}  Qg7 {[%clk 0:00:03]} 46. Qe3 {[%clk 0:00:06]}  Qg6 {[%clk 0:00:03]} 47. Kd3 {[%clk 0:00:06]}  Kf7 {[%clk 0:00:03]} 48. Qf2+ {[%clk 0:00:06]}  Ke7 {[%clk 0:00:03]} 49. Qe2 {[%clk 0:00:05]}  Qg5 {[%clk 0:00:03]} 50. Qe3 {[%clk 0:00:04]}  Qg6 {[%clk 0:00:03]} 51. Kc3 {[%clk 0:00:04]}  Qf6 {[%clk 0:00:03]} 52. b4 {[%clk 0:00:03]}  axb4+ {[%clk 0:00:02]} 53. axb4 {[%clk 0:00:03]}  Qf3 {[%clk 0:00:02]} 54. Kd2 {[%clk 0:00:03]}  Qxe3+ {[%clk 0:00:02]} 55. Kxe3 {[%clk 0:00:04]}  cxb4 {[%clk 0:00:02]} 56. Kd2 {[%clk 0:00:04]}  c5 {[%clk 0:00:02]} 57. dxc6 {[%clk 0:00:04]}  Kd8 {[%clk 0:00:02]} 58. Kc2 {[%clk 0:00:05]}  Kc7 {[%clk 0:00:03]} 59. Kb3 {[%clk 0:00:05]}  Kxc6 {[%clk 0:00:04]} 60. Kxb4 {[%clk 0:00:06]}  Kb6 {[%clk 0:00:04]} 61. Kb3 {[%clk 0:00:02]}  Kc5 {[%clk 0:00:04]} 62. Kc3 {[%clk 0:00:03]}  Kc6 {[%clk 0:00:05]} 63. Kb3 {[%clk 0:00:02]}  Kb6 {[%clk 0:00:05]} 64. Kb4 {[%clk 0:00:03]}  Kc6 {[%clk 0:00:05]} 65. Kb3 {[%clk 0:00:03]}  Kb6 {[%clk 0:00:05]} 66. Kb4 {[%clk 0:00:03]}  Kc6 {[%clk 0:00:04]} 67. Kb3 {[%clk 0:00:04]} 1/2-1/2


[Site "https://www.chess.com"]

[Event "Titled Tuesday Blitz June 27 Early 2023"]
[White "Blokhin, Sofia"]
[Black "Roberson, Peter T"]
[WhiteFideId "4508190"]
[BlackFideId "412384"]
[WhiteElo "2299"]
[BlackElo "2534"]
[Result "1-0"]
[Round "3"]
[TimeControl "180+2"]
[Date "2023.06.27"]
[WhiteClock "0:00:09"]
[BlackClock "0:00:50"]
[Board "195"]

1. d4 {[%clk 0:03:00]}  Nf6 {[%clk 0:02:55]} 2. c4 {[%clk 0:02:59]}  a6 {[%clk 0:02:54]} 3. Nc3 {[%clk 0:02:57]}  c5 {[%clk 0:02:53]} 4. d5 {[%clk 0:02:57]}  e6 {[%clk 0:02:53]} 5. e4 {[%clk 0:02:46]}  d6 {[%clk 0:02:53]} 6. Be3 {[%clk 0:02:41]}  b5 {[%clk 0:02:53]} 7. cxb5 {[%clk 0:02:36]}  exd5 {[%clk 0:02:52]} 8. Nxd5 {[%clk 0:02:26]}  Be7 {[%clk 0:02:41]} 9. b6 {[%clk 0:02:00]}  Nxd5 {[%clk 0:02:38]} 10. Qxd5 {[%clk 0:01:58]}  Qxb6 {[%clk 0:02:39]} 11. Qxa8 {[%clk 0:01:54]}  Qxb2 {[%clk 0:02:39]} 12. Rd1 {[%clk 0:01:45]}  Be6 {[%clk 0:02:31]} 13. Bxa6 {[%clk 0:01:24]}  O-O {[%clk 0:02:29]} 14. Qb7 {[%clk 0:01:21]}  Qxa2 {[%clk 0:02:19]} 15. Qxe7 {[%clk 0:01:18]}  Nxa6 {[%clk 0:02:19]} 16. Nf3 {[%clk 0:01:09]}  Bc4 {[%clk 0:02:16]} 17. Nd2 {[%clk 0:01:00]}  Nb4 {[%clk 0:02:16]} 18. Nxc4 {[%clk 0:00:52]}  Qxc4 {[%clk 0:02:17]} 19. Qxd6 {[%clk 0:00:35]}  Nc2+ {[%clk 0:01:31]} 20. Kd2 {[%clk 0:00:35]}  Ra8 {[%clk 0:01:31]} 21. Qxc5 {[%clk 0:00:26]}  Qa2 {[%clk 0:01:00]} 22. Qxc2 {[%clk 0:00:24]}  Rd8+ {[%clk 0:01:01]} 23. Ke1 {[%clk 0:00:16]}  Qa5+ {[%clk 0:00:51]} 24. Kf1 {[%clk 0:00:16]}  Qa6+ {[%clk 0:00:46]} 25. Kg1 {[%clk 0:00:15]}  Rc8 {[%clk 0:00:47]} 26. Qd2 {[%clk 0:00:14]}  h5 {[%clk 0:00:44]} 27. h3 {[%clk 0:00:14]}  Qa4 {[%clk 0:00:44]} 28. Kh2 {[%clk 0:00:13]}  Rc2 {[%clk 0:00:45]} 29. Qd8+ {[%clk 0:00:12]}  Kh7 {[%clk 0:00:46]} 30. Qd3 {[%clk 0:00:11]}  Qc6 {[%clk 0:00:44]} 31. e5+ {[%clk 0:00:11]}  g6 {[%clk 0:00:45]} 32. Rc1 {[%clk 0:00:10]}  Rxc1 {[%clk 0:00:45]} 33. Rxc1 {[%clk 0:00:10]}  Qe6 {[%clk 0:00:46]} 34. Qe4 {[%clk 0:00:10]}  h4 {[%clk 0:00:46]} 35. Rc6 {[%clk 0:00:09]}  Qe7 {[%clk 0:00:45]} 36. Rf6 {[%clk 0:00:08]}  Kg7 {[%clk 0:00:43]} 37. Qxh4 {[%clk 0:00:07]}  Qxe5+ {[%clk 0:00:44]} 38. Qf4 {[%clk 0:00:08]}  Qd5 {[%clk 0:00:37]} 39. Rxf7+ {[%clk 0:00:07]}  Qxf7 {[%clk 0:00:38]} 40. Qxf7+ {[%clk 0:00:07]}  Kxf7 {[%clk 0:00:39]} 41. Kg3 {[%clk 0:00:07]}  Kf6 {[%clk 0:00:40]} 42. Kg4 {[%clk 0:00:08]}  g5 {[%clk 0:00:40]} 43. Bxg5+ {[%clk 0:00:07]}  Kg6 {[%clk 0:00:41]} 44. Be3 {[%clk 0:00:08]}  Kf6 {[%clk 0:00:42]} 45. h4 {[%clk 0:00:08]}  Kg6 {[%clk 0:00:43]} 46. h5+ {[%clk 0:00:09]}  Kg7 {[%clk 0:00:44]} 47. Kg5 {[%clk 0:00:09]}  Kh7 {[%clk 0:00:45]} 48. h6 {[%clk 0:00:08]}  Kg8 {[%clk 0:00:45]} 49. Kg6 {[%clk 0:00:08]}  Kh8 {[%clk 0:00:45]} 50. Bd4+ {[%clk 0:00:07]}  Kg8 {[%clk 0:00:46]} 51. h7+ {[%clk 0:00:07]}  Kf8 {[%clk 0:00:47]} 52. h8=Q+ {[%clk 0:00:07]}  Ke7 {[%clk 0:00:48]} 53. Qf6+ {[%clk 0:00:07]}  Kd7 {[%clk 0:00:49]} 54. Qf7+ {[%clk 0:00:08]}  Kd6 {[%clk 0:00:49]} 55. Kf5 {[%clk 0:00:08]}  Kc6 {[%clk 0:00:49]} 56. g4 {[%clk 0:00:08]}  Kb5 {[%clk 0:00:50]} 57. g5 {[%clk 0:00:09]}  Kb4 {[%clk 0:00:50]} 58. g6 {[%clk 0:00:10]}  Ka3 {[%clk 0:00:51]} 59. g7 {[%clk 0:00:10]}  Kb4 {[%clk 0:00:51]} 60. g8=Q {[%clk 0:00:10]}  Kb5 {[%clk 0:00:50]} 61. Qc8 {[%clk 0:00:10]}  Ka4 {[%clk 0:00:50]} 62. Qfb7 {[%clk 0:00:08]}  Ka5 {[%clk 0:00:50]} 63. Qca8# {[%clk 0:00:09]} 1-0


[Site "https://www.chess.com"]